fUSD/lending_fUSD_20240105
["ID","MTS","AMOUNT","RATE_DAILY","PERIOD"]
[310250603,1704424173288,541.43382736,0.000225,2]
[310250604,1704424173343,3037.08558605,0.000225,2]
[310250605,1704424173371,284.61415907,0.000225,2]
[310250606,1704424173439,208.02980248,0.000225,2]
[310250607,1704424173783,219.8296715,0.000225,2]
[310250608,1704424174068,1910.0088786,0.000225,2]
[310250609,1704424174097,241.84278242,0.000225,2]
[310250610,1704424174748,620.48589227,0.000216,2]
[310250611,1704424174780,161.74759808,0.000225,2]
[310250612,1704424174815,526.45970422,0.000225,2]
[310250613,1704424174868,527.82416345,0.000225,2]
[310250614,1704424174910,155.0,0.000225,2]
[310250615,1704424174939,1763.54384261,0.000225,2]
[310250616,1704424174992,301.47622861,0.000225,2]
[310250617,1704424175176,232.54524697,0.000225,2]
[310250618,1704424175258,865.67550467,0.000225,2]
[310250619,1704424175297,399.98824367,0.000225,2]
[310250620,1704424175908,522.42903314,0.000225,2]
[310250621,1704424176001,526.82413509,0.000225,2]
[310250622,1704424176921,155.36268128,0.00022275,2]
[310250623,1704424177014,756.90660154,0.000225,2]
[310250624,1704424177735,161.77477273,0.000225,2]
[310250625,1704424178279,190.50008498,0.000225,2]
[310250626,1704424178306,171.4330426,0.000225,2]
[310250627,1704424178524,480.97,0.00022177,2]
[310250628,1704424178991,1849.08309095,0.000225,2]
[310250629,1704424179094,233.75877013,0.000225,2]
[310250630,1704424180356,2261.22713101,0.000225,2]
[310250631,1704424180783,868.6487425,0.00021825,2]
[310250632,1704424181048,524.42887296,0.000225,2]
[310250633,1704424181288,557.32738966,0.00022388,2]
[310250634,1704424181412,196.19698016,0.000225,2]
[310250635,1704424181778,176.86881988,0.00021,2]
[310250636,1704424181883,471.9926114,0.000225,2]
[310250637,1704424182403,336.127011,0.000225,2]
[310250638,1704424182435,548.05618635,0.000225,2]
[310250639,1704424182480,553.78293115,0.000225,2]
[310250640,1704424182527,514.19161131,0.000225,2]
[310250641,1704424182569,265.25685458,0.000225,2]
[310250642,1704424182692,2607.067063,0.000225,2]
[310250643,1704424182885,1654.08515166,0.000225,2]
[310250644,1704424183942,400.0,0.000225,2]
[310250645,1704424184196,5087.60778004,0.000225,2]
[310250646,1704424185600,446.37303665,0.00020025,2]
[310250647,1704424186174,5319.27465842,0.000225,2]
[310250648,1704424186450,528.47877428,0.000225,2]
[310250649,1704424187776,219.8296715,0.000225,2]
[310250650,1704424187803,214.99471801,0.00022478,2]
[310250651,1704424188334,10529.08430965,0.000225,2]
[310250652,1704424188739,157.15051088,0.000225,2]
[310250653,1704424189608,6421.18613973,0.00022499,2]
[310250654,1704424190325,620.48589227,0.00021654,2]
[310250655,1704424191390,4614.15618708,0.00022499,2]
[310250656,1704424203164,150.0,0.00022499,2]
[310250657,1704424203330,150.0,0.00022499,2]
[310250658,1704424203784,150.0,0.00022499,2]
[310250659,1704424203849,409.97268554,0.00020075,2]
[310250660,1704424203897,150.0,0.00022499,2]
[310250661,1704424204031,256.24416963,0.00022499,2]
[310250662,1704424205307,558.08027049,0.00022443,2]
[310250663,1704424212334,599.47448161,0.00021654,2]
[310250664,1704424223216,274.43155124,0.00022462,2]
[310250665,1704424223985,1796.82,0.00022383,2]
[310250666,1704424230874,2500.0,0.00022458,2]
[310250694,1704424235605,360.7182274,0.000225,2]
[310250699,1704424238417,-150.0,0.00022501,2]
[310250700,1704424238427,-157.89,0.00022501,2]
[310250701,1704424238438,-17.69595667,0.00022501,2]
[310250702,1704424238452,-1012.30404333,0.00022501,2]
[310250703,1704424238463,-724.50550226,0.00022502,2]
[310250704,1704424238474,-250.58798822,0.00022502,2]
[310250705,1704424238750,-176.43587322,0.00022502,2]
[310250706,1704424238759,-155.32895434,0.00022502,2]
[310250707,1704424238769,-183.35005849,0.00022502,2]
[310250708,1704424238778,-3331.19764324,0.00022502,2]
[310250709,1704424238787,-155.63994664,0.00022502,2]
[310250710,1704424238797,-500.0,0.00022519,3]
[310250711,1704424238807,-215.16430123,0.00022534,2]
[310250712,1704424238817,-1873.43294253,0.00022556,2]
[310250713,1704424238827,-528.93980468,0.00022556,2]
[310250714,1704424238836,-1043.41750133,0.00022556,2]
[310250715,1704424238849,-285.26038722,0.00022556,2]
[310250717,1704424238859,-1905.24924678,0.00022556,2]
[310250719,1704424238869,-162.08926182,0.00022556,2]
[310250721,1704424238878,-1014.95453402,0.00022556,2]
[310250723,1704424238888,-161.59211333,0.00022556,2]
[310250725,1704424238897,-866.32331057,0.00022556,2]
[310250726,1704424238906,-3037.08558605,0.00022556,2]
[310250728,1704424238917,-297.86077354,0.00022556,2]
[310250730,1704424238927,-235.17610201,0.00022556,2]
[310250732,1704424238936,-230.04073422,0.00022556,2]
[310250734,1704424238945,-301.47622861,0.00022556,2]
[310250736,1704424238954,-232.54524697,0.00022556,2]
[310250738,1704424238963,-761.67489546,0.00022556,2]
[310250740,1704424238972,-528.18365004,0.00022556,2]
[310250742,1704424238981,-155.0,0.00022556,2]
[310250744,1704424238990,-171.4330426,0.00022556,2]
[310250746,1704424238999,-542.46048236,0.00022556,2]
[310250748,1704424239009,-241.84278242,0.00022556,2]
[310250750,1704424239018,-336.127011,0.00022556,2]
[310250752,1704424239030,-155.0,0.00022556,2]
[310250754,1704424239039,-233.75877013,0.00022556,2]
[310250756,1704424239051,-471.9926114,0.00022556,2]
[310250758,1704424239060,-400.0,0.00022556,2]
[310250760,1704424239069,-190.50008498,0.00022556,2]
[310250762,1704424239078,-515.19768877,0.00022556,2]
[310250764,1704424239087,-1654.08515166,0.00022556,2]
[310250766,1704424239096,-548.05618635,0.00022556,2]
[310250768,1704424239105,-5319.27465842,0.00022556,2]
[310250770,1704424239114,-5087.60778004,0.00022556,2]
[310250772,1704424239123,-218.99380796,0.00022556,2]
[310250774,1704424239132,-4609.58920758,0.00022556,2]
[310250776,1704424239141,-6415.04832889,0.00022556,2]
[310250778,1704424239150,-219.8296715,0.00022556,2]
[310250780,1704424239160,-8713.34191343,0.00022556,2]
[310250782,1704424239169,-1854.00000492,0.00022556,2]
[310250784,1704424239179,-2607.067063,0.00022556,2]
[310250787,1704424239188,-196.63421487,0.00022556,2]
[310250789,1704424239198,-532.37995852,0.00022557,2]
[310250791,1704424239209,-840.87003552,0.00022557,2]
[310250792,1704424239218,-75766.2704,0.00022558,2]
[310250794,1704424239229,-2177.7766,0.00022562,2]
[310250797,1704424239238,-500.0,0.00022563,2]
[310250799,1704424239247,-1434.11,0.00022583,2]
[310250801,1704424239257,-159.03,0.00022638,2]
[310250803,1704424239266,-157.89,0.00022687,2]
[310250805,1704424239275,-317.84125667,0.00022761,2]
[310250807,1704424239284,-150.0,0.0002277,2]
[310250809,1704424239293,-150.0,0.0002277,2]
[310250810,1704424239303,-150.0,0.0002277,2]
[310250812,1704424239312,-150.0,0.0002277,2]
[310250814,1704424239321,-150.0,0.0002277,2]
[310250817,1704424239333,-155.83013,0.0002277,2]
[310250819,1704424239342,-150.0,0.00022798,2]
[310250821,1704424239351,-159.03,0.00022835,2]
[310250823,1704424239360,-157.89,0.00022873,2]
[310250825,1704424239370,-4741.3408,0.000229,2]
[310250827,1704424239379,-1710.7914,0.000229,2]
[310250829,1704424239388,-1111.2,0.00022937,2]
[310250831,1704424239398,-159.03,0.00023032,2]
[310250833,1704424239407,-157.89,0.00023058,2]
[310250835,1704424239416,-1428.71,0.00023156,2]
[310250837,1704424239426,-166.50500671,0.00023171,2]
[310250839,1704424239435,-173.51084017,0.00023171,2]
[310250841,1704424239447,-159.03,0.00023228,2]
[310250843,1704424239457,-157.89,0.00023244,2]
[310250845,1704424239467,-274.43155124,0.00023248,2]
[310250847,1704424239476,-1220.41,0.00023286,2]
[310250849,1704424239486,-156.33,0.00023302,2]
[310250851,1704424239495,-150.0,0.00023346,2]
[310250853,1704424239504,-205.3781,0.00023407,2]
[310250855,1704424239513,-215.04,0.0002341,10]
[310250857,1704424239523,-159.03,0.00023425,2]
[310250858,1704424239533,-157.89,0.0002343,2]
[310250859,1704424239542,-166.50500671,0.00023442,2]
[310250860,1704424239553,-157.89,0.00023616,2]
[310250861,1704424239562,-159.03,0.00023621,2]
[310250862,1704424239571,-792.0120574,0.00023699,2]
[310250863,1704424239580,-166.50500671,0.00023714,2]
[310250864,1704424239590,-19968.91992647,0.00023799,2]
[310250865,1704424239599,-938.33,0.000238,2]
[310250866,1704424239608,-938.33,0.000238,2]
[310250867,1704424239618,-938.33,0.000238,2]
[310250868,1704424239628,-382.0,0.000238,2]
[310250869,1704424239637,-520.18,0.000238,2]
[310250871,1704424239647,-157.89,0.00023802,2]
[310250873,1704424239656,-159.03,0.00023818,2]
[310250875,1704424239665,-166.74,0.00023873,2]
[310250877,1704424239674,-150.0,0.00023894,2]
[310250879,1704424239684,-215.04,0.00023957,10]
[310250882,1704424239698,-166.50500671,0.00023985,2]
[310250884,1704424239714,-157.89,0.00023988,2]
[310250886,1704424239724,-150.0,0.00024,2]
[310250888,1704424239735,-151.7,0.00024,2]
[310250891,1704424239745,-938.33,0.00024,2]
[310250893,1704424239755,-150.0,0.00024,2]
[310250895,1704424239764,-151.65,0.00024,2]
[310250897,1704424239774,-938.33,0.00024,2]
[310250899,1704424239783,-150.0,0.00024,2]
[310250901,1704424239793,-343.11048483,0.00024034,2]
[310250903,1704424239804,-274.43155124,0.00024034,2]
[310250905,1704424239813,-150.0,0.00024132,2]
[310250908,1704424239835,-1428.71,0.00024134,2]
[310250910,1704424239844,-156.33,0.00024147,2]
[310250912,1704424239854,-157.89,0.00024174,2]
[310250914,1704424239864,-166.50500671,0.00024257,2]
[310250916,1704424239873,-157.89,0.0002436,2]
[310250918,1704424239883,-1220.41,0.00024395,2]
[310250920,1704424239893,-233.47108182,0.00024442,2]
[310250922,1704424239903,-2207.0,0.000245,2]
[310250925,1704424239913,-215.04,0.00024503,10]
[310250927,1704424239926,-1054263.9214738,0.00024505,2]
[310250929,1704424239936,-164.32,0.00024506,2]
[310250931,1704424239946,-166.50500671,0.00024528,2]
[310250933,1704424239956,-157.89,0.00024546,2]
[310250935,1704424239966,-25187.0,0.000246,2]
[310250937,1704424239976,-250.0,0.00024658,2]
[310250939,1704424239985,-210.0,0.0002475,2]
[310250941,1704424239995,-555.75,0.00024788,2]
[310250943,1704424240005,-166.50500671,0.000248,2]
[310250945,1704424240015,-200.0,0.00024936,2]
[310250947,1704424240024,-472.26,0.00024944,2]
[310250949,1704424240033,-156.33,0.00024992,2]
[310250951,1704424240043,-430.0,0.00025,2]
[310250953,1704424240053,-155.30294817,0.00025,2]
[310250955,1704424240063,-304.00013169,0.00025,2]
[310250957,1704424240072,-1580.1889945,0.00025,2]
[310250959,1704424240081,-1428.71,0.00025112,2]
[310250961,1704424240091,-2000.0,0.00025114,2]
[310250963,1704424240100,-232.85,0.00025134,2]
[310250965,1704424240110,-1111.2,0.00025201,2]
[310250967,1704424240119,-869.59,0.00025245,2]
[310250970,1704424240129,-183.62,0.00025357,2]
[310250973,1704424240138,-166.74,0.00025465,2]
[310250975,1704424240148,-1220.41,0.00025504,2]
[310250977,1704424240157,-3282.92,0.00025527,2]
[310250979,1704424240167,-236.35,0.00025778,2]
[310250981,1704424240176,-500.0,0.00025829,2]
[310250983,1704424240185,-156.33,0.00025837,2]
[310250985,1704424240194,-343.11048483,0.00025953,2]
[310250987,1704424240205,-150.0,0.00026079,2]
[310250989,1704424240214,-1428.71,0.00026091,2]
[310250991,1704424240225,-10525.36720277,0.000264,2]
[310250994,1704424240237,-182.91,0.00026476,2]
[310250996,1704424240248,-163.01,0.00026489,2]
[310250998,1704424240258,-1220.41,0.00026612,2]
[310251000,1704424240267,-164.32,0.00026613,2]
[310251002,1704424240276,-156.33,0.00026682,2]
[310251004,1704424240286,-151.82,0.00026814,2]
[310251006,1704424240296,-219.41014486,0.00027,2]
[310251008,1704424240305,-166.74,0.00027056,2]
[310251010,1704424240314,-1428.71,0.00027069,2]
[310251012,1704424240324,-293.0,0.00027225,2]
[310251014,1704424240333,-155.0,0.00027397,2]
[310251016,1704424240343,-250.0,0.00027397,2]
[310251018,1704424240352,-500.0,0.000274,2]
[310251020,1704424240362,-1111.2,0.00027465,2]
[310251022,1704424240371,-151.82,0.00027485,2]
[310251024,1704424240381,-604.21721138,0.000275,4]
[310251026,1704424240390,-343.11048483,0.00027872,2]
[310251028,1704424240400,-968.89,0.00027945,2]
[310251030,1704424240409,-3077.48,0.00027945,2]
[310251032,1704424240418,-686.69000892,0.00028,2]
[310251034,1704424240428,-1428.71,0.00028048,2]
[310251036,1704424240437,-869.59,0.0002805,2]
[310251038,1704424240447,-151.82,0.00028155,2]
[310251040,1704424240457,-177.65,0.00028227,2]
[310251042,1704424240467,-492.9397083,0.00028419,2]
[310251044,1704424240476,-1117.56831173,0.00028509,2]
[310251046,1704424240486,-166.74,0.00028648,2]
[310251048,1704424240496,-630.19370879,0.00028706,2]
[310251050,1704424240505,-395.84367842,0.00028708,2]
[310251053,1704424240515,-25136.5154531,0.00028708,2]
[310251055,1704424240524,-155.0,0.00028767,2]
[310251057,1704424240536,-175.81,0.000288,2]
[310251059,1704424240546,-500.0,0.000288,2]
[310251061,1704424240556,-151.07687174,0.000288,2]
[310251063,1704424240566,-150.0,0.000288,2]
[310251065,1704424240576,-150.0,0.000288,2]
[310251067,1704424240585,-150.0,0.000288,2]
[310251069,1704424240595,-325.22221659,0.000288,5]
[310251071,1704424240605,-250.0,0.000288,2]
[310251074,1704424240616,-151.82,0.00028825,2]
[310251076,1704424240626,-942.43204142,0.00028898,2]
[310251078,1704424240635,-7421.3012,0.000289,2]
[310251080,1704424240645,-25381.6212,0.000289,2]
[310251082,1704424240655,-100000.0,0.000289,2]
[310251084,1704424240666,-1813.7412,0.000289,2]
[310251086,1704424240676,-19410.6547,0.000289,2]
[310251088,1704424240687,-270.69843484,0.00028998,2]
[310251090,1704424240697,-155.51933077,0.00028998,2]
[310251092,1704424240709,-260.69177845,0.00028998,2]
[310251094,1704424240718,-155.28640053,0.00028998,2]
[310251096,1704424240729,-310.58612102,0.00028998,2]
[310251098,1704424240738,-155.41125113,0.00028998,2]
[310251100,1704424240748,-488.73242178,0.00028998,2]
[310251103,1704424240758,-931.13114601,0.00028998,2]
[310251105,1704424240768,-1133.536065,0.00028998,2]
[310251107,1704424240777,-165.17961817,0.00028998,2]
[310251109,1704424240787,-4644.92257958,0.00028998,2]
[310251111,1704424240797,-942.16953887,0.00028998,2]
[310251113,1704424240806,-155.42863196,0.00028998,2]
[310251115,1704424240816,-155.30590937,0.00028998,2]
[310251117,1704424240827,-282.70272373,0.00028998,2]
[310251120,1704424240837,-235.59596062,0.00028998,2]
[310251123,1704424240848,-1776.90277835,0.00028998,2]
[310251126,1704424240858,-3630.78329728,0.00028998,2]
[310251129,1704424240867,-155.60617536,0.00028998,2]
[310251131,1704424240877,-155.29110697,0.00028998,2]
[310251134,1704424240887,-155.3678245,0.00028998,2]
[310251137,1704424240897,-633.867312,0.00028998,2]
[310251139,1704424240907,-371.70985186,0.00028998,2]
[310251142,1704424240918,-155.42172242,0.00028998,2]
[310251146,1704424240929,-155.28188898,0.00028998,2]
[310251148,1704424240938,-155.2593392,0.00028998,2]
[310251151,1704424240949,-160.89502532,0.00028998,2]
[310251153,1704424240958,-155.5489027,0.00028998,2]
[310251155,1704424240967,-155.22336036,0.00028998,2]
[310251157,1704424240977,-385.39220614,0.00028998,2]
[310251159,1704424240987,-544.36477658,0.00028998,2]
[310251161,1704424240997,-196.25088216,0.00028998,2]
[310251163,1704424241007,-155.14409277,0.00028998,2]
[310251165,1704424241016,-155.27135911,0.00028998,2]
[310251167,1704424241026,-155.53655727,0.00028998,2]
[310251169,1704424241035,-155.38188479,0.00028998,2]
[310251171,1704424241047,-262.52666332,0.00028998,2]
[310251173,1704424241056,-155.28647767,0.00028998,2]
[310251175,1704424241065,-11688.92867589,0.00028998,2]
[310251177,1704424241075,-899.09976265,0.00028998,4]
[310251179,1704424241084,-10492.4099566,0.00028998,2]
[310251181,1704424241093,-697.45830467,0.00028998,2]
[310251183,1704424241103,-271.13525238,0.00028998,2]
[310251185,1704424241113,-155.39662891,0.00028998,2]
[310251187,1704424241122,-155.28578435,0.00028998,2]
[310251189,1704424241132,-104263.11423629,0.00028998,2]
[310251191,1704424241141,-164.32949861,0.00028998,2]
[310251193,1704424241151,-155.0,0.00028998,2]
[310251195,1704424241162,-239.48314456,0.00028998,2]
[310251197,1704424241173,-327.93283653,0.00028999,2]
[310251199,1704424241183,-33287.6707948,0.00028999,2]
[310251202,1704424241192,-129007.34190617,0.00029,2]
[310251204,1704424241202,-1428.71,0.00029026,2]
[310251206,1704424241211,-833.0,0.00029028,2]
[310251207,1704424241222,-1234.0,0.00029028,2]
[310251210,1704424241233,-1269.394,0.00029028,2]
[310251212,1704424241244,-1927.0,0.00029028,2]
[310251214,1704424241254,-1137.0,0.00029028,2]
[310251216,1704424241263,-444.16,0.00029028,2]
[310251218,1704424241273,-19644.0,0.00029028,2]
[310251220,1704424241283,-667.494,0.00029028,2]
[310251222,1704424241292,-2280.003,0.00029028,2]
[310251224,1704424241302,-250.0,0.00029074,2]
[310251226,1704424241311,-175.81,0.00029348,2]
[310251228,1704424241321,-500.0,0.00029348,2]
[310251230,1704424241330,-152.26271148,0.00029348,2]
[310251232,1704424241340,-250.0,0.00029348,2]
[310251234,1704424241350,-151.82,0.00029496,2]
[310251236,1704424241360,-2945.21990421,0.00029622,6]
[310251238,1704424241370,-250.0,0.00029622,2]
[310251240,1704424241380,-1111.2,0.00029729,2]
[310251242,1704424241390,-942.43204136,0.0002978,2]
[310251244,1704424241400,-343.11048483,0.00029791,2]
[310251246,1704424241410,-191.33518818,0.00029797,2]
[310251248,1704424241420,-150.0,0.00029799,2]
[310251250,1704424241430,-530.0,0.000298,5]
[310251252,1704424241441,-898580.54251647,0.000298,2]
[310251254,1704424241452,-177.35,0.00029891,2]
[310251256,1704424241461,-175.81,0.00029896,2]
[310251258,1704424241471,-505.90551604,0.00029896,2]
[310251260,1704424241481,-258.33493005,0.00029896,2]
[310251262,1704424241490,-59979.59845711,0.000299,2]
[310251264,1704424241500,-719.83,0.000299,2]
[310251266,1704424241509,-41803.7972,0.000299,2]
[310251268,1704424241519,-192.0,0.00029948,2]
[310251270,1704424241528,-2298.13297596,0.0002996,2]
[310251272,1704424241538,-41742.87864424,0.0003,4]
[310251274,1704424241549,-9617.21818434,0.0003,2]
[310251276,1704424241558,-294.53761388,0.0003,2]
[310251278,1704424241568,-155.0,0.0003,2]
[310251280,1704424241577,-460.70955367,0.0003,4]
[310251282,1704424241587,-771.13349501,0.0003,4]
[310251285,1704424241597,-307809.14220797,0.0003,4]
[310251287,1704424241607,-2545.93649865,0.0003,4]
[310251289,1704424241616,-11693.17999801,0.0003,2]
[310251291,1704424241626,-1428.71,0.00030005,2]
[310251293,1704424241635,-396.30534316,0.000301,2]
[310251295,1704424241644,-153.84,0.00030137,2]
[310251297,1704424241654,-7292.69,0.00030137,2]
[310251299,1704424241663,-10000.0,0.00030137,2]
[310251301,1704424241672,-155.0,0.00030137,2]
[310251303,1704424241682,-166.74,0.0003024,2]
[310251305,1704424241691,-175.81,0.00030444,2]
[310251307,1704424241700,-942.43204136,0.00030662,2]
[310251309,1704424241710,-1352.0,0.00030728,2]
[310251311,1704424241720,-772.304,0.00030728,2]
[310251313,1704424241729,-869.59,0.00030855,2]
[310251315,1704424241739,-163.01,0.00030904,2]
[310251317,1704424241749,-1688.0,0.0003096,2]
[310251319,1704424241759,-1428.71,0.00030983,2]
[310251321,1704424241769,-188.44,0.00030985,120]
[310251323,1704424241778,-175.81,0.00030992,2]
[310251325,1704424241793,-7270.78937991,0.00031,2]
[310251326,1704424241825,-40339.0,0.00031,2]
[310251329,1704424241835,-153.84,0.0003105,2]
[310251331,1704424241846,-1796.82,0.00031337,2]
[310251333,1704424241856,-199.44,0.00031507,2]
[310251334,1704424241866,-157.41056711,0.00031507,2]
[310251337,1704424241875,-186.5099508,0.0003154,2]
[310251339,1704424241885,-150.0,0.0003154,2]
[310251341,1704424241894,-942.43204136,0.00031544,3]
[310251343,1704424241906,-201.0,0.00031666,2]
[310251345,1704424241916,-150.0,0.00031799,2]
[310251347,1704424241925,-194632.078641,0.000318,2]
[310251349,1704424241934,-166.74,0.00031831,2]
[310251351,1704424241943,-153.813155,0.000319,2]
[310251353,1704424241953,-153.81315469,0.000319,2]
[310251355,1704424241962,-153.81315469,0.000319,2]
[310251357,1704424241971,-153.81315469,0.000319,2]
[310251358,1704424241980,-153.81315469,0.000319,2]
[310251359,1704424241990,-153.81315469,0.000319,2]
[310251360,1704424241999,-153.81315469,0.000319,2]
[310251361,1704424242008,-5663.8013,0.00031927,3]
[310251362,1704424242017,-1428.71,0.00031962,2]
[310251363,1704424242026,-153.84,0.00031963,2]
[310251364,1704424242035,-1111.2,0.00031993,2]
[310251365,1704424242048,-179.26441963,0.00032,4]
[310251366,1704424242057,-7677.48579285,0.00032,4]
[310251368,1704424242067,-833.0,0.00032028,2]
[310251370,1704424242077,-1036.509,0.00032028,2]
[310251372,1704424242087,-1254.0,0.00032028,2]
[310251374,1704424242098,-1924.0,0.00032028,2]
[310251376,1704424242108,-19644.0,0.00032028,2]
[310251378,1704424242118,-2266.0,0.00032028,2]
[310251380,1704424242128,-153.81315469,0.00032039,2]
[310251382,1704424242139,-258.30234345,0.000323,4]
[310251384,1704424242150,-942.43204136,0.00032426,4]
[310251386,1704424242161,-12581.16258618,0.00032483,2]
[310251388,1704424242171,-16475.25387412,0.000325,2]
[310251390,1704424242180,-163.73,0.000328,2]
[310251392,1704424242190,-201.0,0.00032847,4]
[310251394,1704424242200,-169.39846557,0.00032876,7]
[310251396,1704424242211,-196.67207607,0.00032876,7]
[310251398,1704424242222,-282.73497521,0.00032876,2]
[310251400,1704424242232,-216.28993255,0.00032876,2]
[310251402,1704424242242,-153.84,0.00032877,2]
[310251404,1704424242251,-215.45,0.00032877,15]
[310251406,1704424242262,-500.0,0.00032877,2]
[310251408,1704424242272,-5944.38,0.00032877,2]
[310251410,1704424242282,-51844.62,0.00032877,2]
[310251412,1704424242292,-36911.25,0.00032877,2]
[310251414,1704424242304,-1000.0,0.000329,2]
[310251416,1704424242314,-5236.2671396,0.000329,2]
[310251418,1704424242325,-1428.71,0.0003294,2]
[310251420,1704424242336,-236.82617488,0.00033,4]
[310251422,1704424242346,-1021.06342538,0.00033,2]
[310251424,1704424242356,-153.81315469,0.0003323,2]
[310251426,1704424242366,-942.43204136,0.00033308,5]
[310251428,1704424242376,-166.74,0.00033423,2]
[310251430,1704424242386,-1000.0,0.00033575,2]
[310251432,1704424242396,-869.59,0.0003366,2]
[310251434,1704424242406,-1021.0,0.000337,7]
[310251436,1704424242416,-755.916,0.00033728,2]
[310251438,1704424242426,-153.08464517,0.0003374,2]
[310251440,1704424242436,-153.84,0.0003379,2]
[310251442,1704424242447,-1428.71,0.00033919,2]
[310251445,1704424242457,-177.65,0.00033984,2]
[310251446,1704424242466,-1000.0,0.00034,4]
[310251448,1704424242477,-155.0,0.00034,2]
[310251451,1704424242486,-500.0,0.00034,6]
[310251453,1704424242498,-201.0,0.00034027,6]
[310251455,1704424242510,-942.43204136,0.0003419,6]
[310251457,1704424242520,-1111.2,0.00034256,2]
[310251458,1704424242529,-236.65931547,0.0003428,2]
[310251461,1704424242539,-154.87,0.0003431,2]
[310251463,1704424242550,-153.81315469,0.00034421,2]
[310251465,1704424242559,-4532.22376736,0.00034445,7]
[310251466,1704424242571,-223.43224485,0.00034445,7]
[310251468,1704424242581,-160.45516295,0.00034445,7]
[310251470,1704424242592,-294.19986322,0.00034445,7]
[310251472,1704424242603,-1139.79540411,0.00034445,7]
[310251474,1704424242613,-440.952926,0.0003452,2]
[310251476,1704424242623,-409.62,0.00034521,2]
[310251479,1704424242634,-154.87,0.00034573,2]
[310251481,1704424242644,-182.96,0.00034653,2]
[310251483,1704424242657,-180.0,0.00034658,2]
[310251485,1704424242669,-157.40105,0.00034698,2]
[310251486,1704424242679,-153.84,0.00034703,2]
[310251489,1704424242689,-661.429389,0.00034794,2]
[310251490,1704424242701,-157.40105,0.00034798,2]
[310251492,1704424242711,-154.87,0.00034837,2]
[310251495,1704424242722,-19960.14661943,0.00034897,3]
[310251497,1704424242732,-1428.71,0.00034897,2]
[310251517,1704424242938,-157.40105,0.00034898,2]
[310251520,1704424242950,-10062.6772778,0.00034899,5]
[310251522,1704424242960,-65315.44960121,0.000349,2]
[310251523,1704424242970,-1528.41958395,0.000349,2]
[310251526,1704424242980,-1528.41958395,0.000349,2]
[310251528,1704424242991,-1528.41958395,0.000349,2]
[310251530,1704424243000,-1528.41958395,0.000349,2]
[310251532,1704424243010,-1528.41958395,0.000349,2]
[310251534,1704424243019,-196.75092698,0.000349,2]
[310251536,1704424243029,-5000.0,0.000349,2]
[310251538,1704424243038,-150.0,0.00034901,2]
[310251540,1704424243050,-150.0,0.00034925,2]
[310251542,1704424243059,-881.905852,0.00034931,2]
[310251544,1704424243068,-200000.0,0.00034981,10]
[310251546,1704424243079,-157.40105,0.00034998,2]
[310251548,1704424243090,-251.29166314,0.00035,4]
[310251550,1704424243098,-891.45393443,0.00035,2]
[310251552,1704424243108,-18961.25296946,0.00035,4]
[310251554,1704424243117,-5118.6,0.00035,15]
[310251556,1704424243127,-619.33065497,0.00035,4]
[310251558,1704424243136,-447.64121143,0.00035,4]
[310251560,1704424243145,-155.15936697,0.00035,4]
[310251562,1704424243154,-201.52702081,0.00035,2]
[310251564,1704424243163,-430.94986666,0.00035,2]
[310251566,1704424243173,-292.81453879,0.00035,2]
[310251568,1704424243182,-156.17691054,0.00035,2]
[310251570,1704424243191,-24387.46861742,0.00035,7]
[310251572,1704424243200,-833.0,0.00035028,2]